[Event "Titled Tuesday Blitz June 13 Early 2023"]
[White "Jaivardhan Raj"]
[Black "Horak, Martin"]
[WhiteFideId "25744437"]
[BlackFideId "367095"]
[WhiteElo "1772"]
[BlackElo "2091"]
[Result "1-0"]
[Round "7"]
[TimeControl "180+2"]
[Date "2023.06.13"]
[WhiteClock "0:00:23"]
[BlackClock "0:00:31"]
[Board "122"]

1. e4 {[%clk 0:03:00]}  c5 {[%clk 0:02:59]} 2. Nf3 {[%clk 0:03:00]}  Nc6 {[%clk 0:03:00]} 3. d4 {[%clk 0:03:00]}  cxd4 {[%clk 0:03:00]} 4. Nxd4 {[%clk 0:03:00]}  Nf6 {[%clk 0:03:01]} 5. Nc3 {[%clk 0:02:59]}  e5 {[%clk 0:03:02]} 6. Ndb5 {[%clk 0:02:58]}  d6 {[%clk 0:03:02]} 7. Bg5 {[%clk 0:02:55]}  a6 {[%clk 0:03:01]} 8. Na3 {[%clk 0:02:54]}  b5 {[%clk 0:03:02]} 9. Nd5 {[%clk 0:02:49]}  Be7 {[%clk 0:03:01]} 10. Bxf6 {[%clk 0:02:47]}  Bxf6 {[%clk 0:03:02]} 11. c3 {[%clk 0:02:47]}  O-O {[%clk 0:03:01]} 12. Nc2 {[%clk 0:02:45]}  Rb8 {[%clk 0:03:01]} 13. Be2 {[%clk 0:02:34]}  Bg5 {[%clk 0:02:59]} 14. Qd3 {[%clk 0:02:30]}  a5 {[%clk 0:02:33]} 15. O-O {[%clk 0:02:13]}  Ne7 {[%clk 0:02:15]} 16. Nce3 {[%clk 0:02:05]}  Bxe3 {[%clk 0:02:03]} 17. Nxe3 {[%clk 0:02:01]}  Be6 {[%clk 0:02:03]} 18. Rfd1 {[%clk 0:01:56]}  Rb6 {[%clk 0:01:57]} 19. Rd2 {[%clk 0:01:44]}  Qc7 {[%clk 0:01:48]} 20. Bg4 {[%clk 0:01:39]}  Rd8 {[%clk 0:01:21]} 21. Bxe6 {[%clk 0:01:24]}  fxe6 {[%clk 0:01:21]} 22. Ng4 {[%clk 0:01:17]}  Ng6 {[%clk 0:01:05]} 23. Rad1 {[%clk 0:01:05]}  Qc5 {[%clk 0:01:03]} 24. Qg3 {[%clk 0:00:57]}  b4 {[%clk 0:00:54]} 25. h4 {[%clk 0:00:42]}  h5 {[%clk 0:00:54]} 26. Nf6+ {[%clk 0:00:32]}  Kf7 {[%clk 0:00:51]} 27. Nxh5 {[%clk 0:00:29]}  bxc3 {[%clk 0:00:48]} 28. Rc2 {[%clk 0:00:27]}  Rxb2 {[%clk 0:00:33]} 29. Rxc3 {[%clk 0:00:26]}  Qb6 {[%clk 0:00:33]} 30. Rf3+ {[%clk 0:00:24]}  Nf4 {[%clk 0:00:31]} 31. Qxg7+ {[%clk 0:00:22]}  Ke8 {[%clk 0:00:31]} 32. Nf6# {[%clk 0:00:23]} 1-0


[Site "https://www.chess.com"]

[Event "Titled Tuesday Blitz June 13 Early 2023"]
[White "Karthik Rajaa"]
[Black "Petrova, Irina"]
[WhiteFideId "25035215"]
[BlackFideId "14124122"]
[WhiteElo "2215"]
[BlackElo "2084"]
[Result "0-1"]
[Round "7"]
[TimeControl "180+2"]
[Date "2023.06.13"]
[WhiteClock "0:00:08"]
[BlackClock "0:00:45"]
[Board "124"]

1. Nf3 {[%clk 0:03:00]}  d6 {[%clk 0:03:00]} 2. d4 {[%clk 0:03:00]}  g6 {[%clk 0:03:00]} 3. g3 {[%clk 0:02:59]}  Bg7 {[%clk 0:03:00]} 4. Bg2 {[%clk 0:03:00]}  Nf6 {[%clk 0:02:59]} 5. c4 {[%clk 0:03:00]}  O-O {[%clk 0:02:59]} 6. Nc3 {[%clk 0:03:01]}  Nc6 {[%clk 0:02:59]} 7. d5 {[%clk 0:03:00]}  Na5 {[%clk 0:02:57]} 8. b3 {[%clk 0:03:01]}  Ne4 {[%clk 0:02:50]} 9. Nxe4 {[%clk 0:03:01]}  Bxa1 {[%clk 0:02:50]} 10. Bd2 {[%clk 0:03:02]}  Nxb3 {[%clk 0:02:44]} 11. Qxb3 {[%clk 0:02:55]}  Bg7 {[%clk 0:02:44]} 12. O-O {[%clk 0:02:50]}  e5 {[%clk 0:02:44]} 13. dxe6 {[%clk 0:02:44]}  Bxe6 {[%clk 0:02:41]} 14. Bc3 {[%clk 0:02:27]}  Rb8 {[%clk 0:02:38]} 15. Bxg7 {[%clk 0:02:26]}  Kxg7 {[%clk 0:02:39]} 16. Nfg5 {[%clk 0:01:59]}  Bd7 {[%clk 0:02:32]} 17. Qc3+ {[%clk 0:01:47]}  f6 {[%clk 0:02:32]} 18. Rd1 {[%clk 0:01:45]}  Qe7 {[%clk 0:02:30]} 19. Nh3 {[%clk 0:01:43]}  Bxh3 {[%clk 0:02:25]} 20. Bxh3 {[%clk 0:01:39]}  Qxe4 {[%clk 0:02:25]} 21. Bg2 {[%clk 0:01:40]}  Qe5 {[%clk 0:02:25]} 22. Qc2 {[%clk 0:01:39]}  Rfe8 {[%clk 0:02:23]} 23. e3 {[%clk 0:01:39]}  b5 {[%clk 0:02:10]} 24. cxb5 {[%clk 0:01:35]}  Rxb5 {[%clk 0:02:05]} 25. Qxc7+ {[%clk 0:01:35]}  Re7 {[%clk 0:02:05]} 26. Qd8 {[%clk 0:01:35]}  Rb2 {[%clk 0:01:59]} 27. Bd5 {[%clk 0:01:31]}  Re8 {[%clk 0:01:50]} 28. Qc7+ {[%clk 0:01:21]}  Qe7 {[%clk 0:01:49]} 29. Qc3 {[%clk 0:01:21]}  Reb8 {[%clk 0:01:46]} 30. Kg2 {[%clk 0:01:18]}  Qe5 {[%clk 0:01:38]} 31. Qc7+ {[%clk 0:01:17]}  Kh6 {[%clk 0:01:39]} 32. Rd4 {[%clk 0:01:16]}  g5 {[%clk 0:01:34]} 33. Be4 {[%clk 0:00:59]}  Rh8 {[%clk 0:01:18]} 34. h4 {[%clk 0:00:20]}  gxh4 {[%clk 0:01:15]} 35. Bf3 {[%clk 0:00:08]}  Qxg3+ {[%clk 0:00:45]} 0-1


[Site "https://www.chess.com"]

[Event "Titled Tuesday Blitz June 13 Early 2023"]
[White "Mamedov, Edgar"]
[Black "Melikhov, Evgeny V."]
[WhiteFideId "13739980"]
[BlackFideId "4122046"]
[WhiteElo "2317"]
[BlackElo "2158"]
[Result "0-1"]
[Round "7"]
[TimeControl "180+2"]
[Date "2023.06.13"]
[WhiteClock "0:00:00"]
[BlackClock "0:00:24"]
[Board "127"]

1. Nf3 {[%clk 0:02:59]}  f5 {[%clk 0:02:59]} 2. g3 {[%clk 0:02:58]}  Nf6 {[%clk 0:02:59]} 3. Bg2 {[%clk 0:02:58]}  g6 {[%clk 0:02:59]} 4. O-O {[%clk 0:02:58]}  Bg7 {[%clk 0:03:00]} 5. d4 {[%clk 0:02:58]}  O-O {[%clk 0:02:59]} 6. c4 {[%clk 0:02:58]}  d6 {[%clk 0:03:00]} 7. Nc3 {[%clk 0:02:58]}  Qe8 {[%clk 0:02:59]} 8. b3 {[%clk 0:02:56]}  a5 {[%clk 0:02:52]} 9. Re1 {[%clk 0:02:53]}  h6 {[%clk 0:02:48]} 10. e4 {[%clk 0:02:48]}  fxe4 {[%clk 0:02:48]} 11. Nxe4 {[%clk 0:02:48]}  Nxe4 {[%clk 0:02:48]} 12. Rxe4 {[%clk 0:02:49]}  Bf5 {[%clk 0:02:48]} 13. Re1 {[%clk 0:02:47]}  Qf7 {[%clk 0:02:48]} 14. Bb2 {[%clk 0:02:30]}  a4 {[%clk 0:02:25]} 15. Re3 {[%clk 0:02:19]}  a3 {[%clk 0:02:22]} 16. Bc3 {[%clk 0:02:19]}  Nd7 {[%clk 0:02:01]} 17. d5 {[%clk 0:02:14]}  Bxc3 {[%clk 0:01:54]} 18. Rxc3 {[%clk 0:02:15]}  Bg4 {[%clk 0:01:39]} 19. h3 {[%clk 0:02:12]}  Bxf3 {[%clk 0:01:34]} 20. Rxf3 {[%clk 0:02:09]}  Qg7 {[%clk 0:01:33]} 21. Re3 {[%clk 0:02:08]}  g5 {[%clk 0:01:10]} 22. Qe1 {[%clk 0:02:04]}  Ne5 {[%clk 0:01:06]} 23. Kh2 {[%clk 0:01:34]}  g4 {[%clk 0:01:05]} 24. h4 {[%clk 0:01:28]}  Rf6 {[%clk 0:00:59]} 25. Rd1 {[%clk 0:01:23]}  Raf8 {[%clk 0:00:58]} 26. Rd2 {[%clk 0:01:23]}  h5 {[%clk 0:00:56]} 27. Rde2 {[%clk 0:01:16]}  R8f7 {[%clk 0:00:41]} 28. Rxe5 {[%clk 0:00:49]}  dxe5 {[%clk 0:00:40]} 29. Rxe5 {[%clk 0:00:50]}  Kf8 {[%clk 0:00:36]} 30. Rxh5 {[%clk 0:00:23]}  Rxf2 {[%clk 0:00:35]} 31. Re5 {[%clk 0:00:11]}  Qf6 {[%clk 0:00:30]} 32. c5 {[%clk 0:00:02]}  Qf3 {[%clk 0:00:25]} 33. Qg1 {[%clk 0:00:00]}  Qc3 {[%clk 0:00:24]} 0-1


[Site "https://www.chess.com"]

[Event "Titled Tuesday Blitz June 13 Early 2023"]
[White "Vifleemskaia, Svetlana"]
[Black "Zaitsev, Alexander"]
[WhiteFideId "4129490"]
[BlackFideId "4164490"]
[WhiteElo "1930"]
[BlackElo "2373"]
[Result "1/2-1/2"]
[Round "7"]
[TimeControl "180+2"]
[Date "2023.06.13"]
[WhiteClock "0:00:01"]
[BlackClock "0:00:04"]
[Board "131"]

1. d4 {[%clk 0:03:00]}  Nf6 {[%clk 0:02:59]} 2. c4 {[%clk 0:03:01]}  e6 {[%clk 0:03:00]} 3. Nc3 {[%clk 0:03:01]}  Bb4 {[%clk 0:03:01]} 4. e3 {[%clk 0:03:01]}  b6 {[%clk 0:03:01]} 5. Ne2 {[%clk 0:03:02]}  Ba6 {[%clk 0:03:01]} 6. a3 {[%clk 0:03:03]}  Bxc3+ {[%clk 0:03:01]} 7. Nxc3 {[%clk 0:03:03]}  d5 {[%clk 0:03:02]} 8. b3 {[%clk 0:02:57]}  O-O {[%clk 0:03:01]} 9. Be2 {[%clk 0:02:55]}  Nc6 {[%clk 0:03:01]} 10. O-O {[%clk 0:02:53]}  Na5 {[%clk 0:02:55]} 11. cxd5 {[%clk 0:02:50]}  Bxe2 {[%clk 0:02:54]} 12. Nxe2 {[%clk 0:02:50]}  exd5 {[%clk 0:02:48]} 13. Bd2 {[%clk 0:02:44]}  Nb7 {[%clk 0:02:38]} 14. Ng3 {[%clk 0:02:43]}  Nd6 {[%clk 0:02:38]} 15. Bb4 {[%clk 0:02:39]}  Re8 {[%clk 0:02:34]} 16. Bxd6 {[%clk 0:02:38]}  Qxd6 {[%clk 0:02:35]} 17. b4 {[%clk 0:02:32]}  c6 {[%clk 0:02:29]} 18. Qb3 {[%clk 0:02:29]}  a5 {[%clk 0:02:03]} 19. Rab1 {[%clk 0:02:05]}  axb4 {[%clk 0:01:53]} 20. Qxb4 {[%clk 0:02:02]}  Qxb4 {[%clk 0:01:53]} 21. axb4 {[%clk 0:02:01]}  b5 {[%clk 0:01:35]} 22. Rfc1 {[%clk 0:02:00]}  Re6 {[%clk 0:01:27]} 23. Ra1 {[%clk 0:01:59]}  Ree8 {[%clk 0:01:18]} 24. Kf1 {[%clk 0:01:50]}  g6 {[%clk 0:01:16]} 25. Rxa8 {[%clk 0:01:46]}  Rxa8 {[%clk 0:01:15]} 26. Rxc6 {[%clk 0:01:47]}  Kg7 {[%clk 0:01:04]} 27. Rb6 {[%clk 0:01:30]}  h5 {[%clk 0:00:54]} 28. f3 {[%clk 0:01:22]}  Ra1+ {[%clk 0:00:40]} 29. Kf2 {[%clk 0:01:21]}  Ra2+ {[%clk 0:00:40]} 30. Ne2 {[%clk 0:01:21]}  Rb2 {[%clk 0:00:30]} 31. Rxb5 {[%clk 0:01:20]}  Kf8 {[%clk 0:00:27]} 32. Rb7 {[%clk 0:01:19]}  Ne8 {[%clk 0:00:24]} 33. Rd7 {[%clk 0:00:58]}  Nf6 {[%clk 0:00:21]} 34. Rb7 {[%clk 0:00:56]}  Ne8 {[%clk 0:00:21]} 35. Rb8 {[%clk 0:00:45]}  Ke7 {[%clk 0:00:20]} 36. e4 {[%clk 0:00:43]}  dxe4 {[%clk 0:00:18]} 37. fxe4 {[%clk 0:00:43]}  Nd6 {[%clk 0:00:19]} 38. Kf3 {[%clk 0:00:40]}  Rb3+ {[%clk 0:00:19]} 39. Kf4 {[%clk 0:00:35]}  g5+ {[%clk 0:00:19]} 40. Kxg5 {[%clk 0:00:26]}  Nxe4+ {[%clk 0:00:19]} 41. Kxh5 {[%clk 0:00:26]}  Nf6+ {[%clk 0:00:16]} 42. Kh4 {[%clk 0:00:21]}  Re3 {[%clk 0:00:15]} 43. Nf4 {[%clk 0:00:18]}  Re4 {[%clk 0:00:15]} 44. g3 {[%clk 0:00:18]}  Rxd4 {[%clk 0:00:16]} 45. Kg5 {[%clk 0:00:15]}  Ne4+ {[%clk 0:00:15]} 46. Kf5 {[%clk 0:00:14]}  Nd6+ {[%clk 0:00:16]} 47. Ke5 {[%clk 0:00:13]}  Re4+ {[%clk 0:00:16]} 48. Kd5 {[%clk 0:00:13]}  Re1 {[%clk 0:00:14]} 49. Kc6 {[%clk 0:00:09]}  Rc1+ {[%clk 0:00:12]} 50. Kb6 {[%clk 0:00:08]}  Nc4+ {[%clk 0:00:11]} 51. Kb5 {[%clk 0:00:08]}  Nd6+ {[%clk 0:00:11]} 52. Kb6 {[%clk 0:00:07]}  Nc4+ {[%clk 0:00:10]} 53. Ka6 {[%clk 0:00:04]}  Ra1+ {[%clk 0:00:09]} 54. Kb5 {[%clk 0:00:03]}  Nd6+ {[%clk 0:00:09]} 55. Kc5 {[%clk 0:00:04]}  Rc1+ {[%clk 0:00:08]} 56. Kd4 {[%clk 0:00:04]}  Nf5+ {[%clk 0:00:08]} 57. Ke4 {[%clk 0:00:04]}  Nd6+ {[%clk 0:00:09]} 58. Kf3 {[%clk 0:00:04]}  Rc3+ {[%clk 0:00:07]} 59. Kg4 {[%clk 0:00:04]}  Rc4 {[%clk 0:00:08]} 60. h4 {[%clk 0:00:03]}  Ne4 {[%clk 0:00:06]} 61. Nd5+ {[%clk 0:00:02]}  Kd6 {[%clk 0:00:06]} 62. Nf4 {[%clk 0:00:01]}  Rc3 {[%clk 0:00:07]} 63. Nh5 {[%clk 0:00:01]}  Nf2+ {[%clk 0:00:02]} 64. Kg5 {[%clk 0:00:01]}  Ne4+ {[%clk 0:00:03]} 65. Kg4 {[%clk 0:00:01]}  Nf2+ {[%clk 0:00:03]} 66. Kg5 {[%clk 0:00:01]}  Ne4+ {[%clk 0:00:04]} 67. Kg4 {[%clk 0:00:01]} 1/2-1/2


[Site "https://www.chess.com"]

[Event "Titled Tuesday Blitz June 13 Early 2023"]
[White "EdmundPlayer"]
[Black "The_Sherman_Variation"]
[WhiteElo "2268"]
[BlackElo "2446"]
[Result "0-1"]
[Round "7"]
[TimeControl "180+2"]
[Date "2023.06.13"]
[WhiteClock "0:00:00"]
[BlackClock "0:00:22"]
[Board "135"]

1. e4 {[%clk 0:03:00]}  c5 {[%clk 0:02:57]} 2. Nf3 {[%clk 0:02:59]}  e6 {[%clk 0:02:57]} 3. d4 {[%clk 0:02:55]}  cxd4 {[%clk 0:02:56]} 4. Nxd4 {[%clk 0:02:53]}  Nc6 {[%clk 0:02:57]} 5. Nc3 {[%clk 0:02:48]}  Nf6 {[%clk 0:02:54]} 6. g3 {[%clk 0:02:45]}  a6 {[%clk 0:02:49]} 7. Bg2 {[%clk 0:02:42]}  Qc7 {[%clk 0:02:49]} 8. O-O {[%clk 0:02:39]}  Bc5 {[%clk 0:02:33]} 9. Be3 {[%clk 0:02:33]}  Nxd4 {[%clk 0:02:27]} 10. Bxd4 {[%clk 0:02:32]}  Bxd4 {[%clk 0:02:24]} 11. Qxd4 {[%clk 0:02:33]}  d6 {[%clk 0:02:23]} 12. Rad1 {[%clk 0:02:30]}  O-O {[%clk 0:02:15]} 13. Qxd6 {[%clk 0:02:29]}  Qa5 {[%clk 0:02:08]} 14. e5 {[%clk 0:02:21]}  Nd7 {[%clk 0:02:07]} 15. Rfe1 {[%clk 0:02:18]}  Ra7 {[%clk 0:01:54]} 16. f4 {[%clk 0:01:33]}  b5 {[%clk 0:01:46]} 17. a3 {[%clk 0:01:28]}  Qb6+ {[%clk 0:01:36]} 18. Kf1 {[%clk 0:01:21]}  Rc7 {[%clk 0:01:26]} 19. Re2 {[%clk 0:01:08]}  Bb7 {[%clk 0:01:16]} 20. Bxb7 {[%clk 0:00:57]}  Qxb7 {[%clk 0:01:16]} 21. Ne4 {[%clk 0:00:57]}  Nb6 {[%clk 0:01:09]} 22. b3 {[%clk 0:00:50]}  Nd5 {[%clk 0:01:05]} 23. a4 {[%clk 0:00:37]}  Rc6 {[%clk 0:01:01]} 24. Qa3 {[%clk 0:00:34]}  b4 {[%clk 0:01:01]} 25. Qb2 {[%clk 0:00:32]}  Qb6 {[%clk 0:01:00]} 26. Qd4 {[%clk 0:00:31]}  Qb8 {[%clk 0:00:52]} 27. Nd6 {[%clk 0:00:25]}  Rd8 {[%clk 0:00:47]} 28. Qe4 {[%clk 0:00:22]}  Qc7 {[%clk 0:00:38]} 29. Nc4 {[%clk 0:00:11]}  h6 {[%clk 0:00:33]} 30. Rd3 {[%clk 0:00:10]}  Rc8 {[%clk 0:00:31]} 31. Red2 {[%clk 0:00:08]}  Rc5 {[%clk 0:00:30]} 32. Qd4 {[%clk 0:00:07]}  Kh7 {[%clk 0:00:25]} 33. Ke1 {[%clk 0:00:05]}  Qc6 {[%clk 0:00:23]} 34. Kd1 {[%clk 0:00:03]}  Nc3+ {[%clk 0:00:22]} 35. Rxc3 {[%clk 0:00:01]}  bxc3 {[%clk 0:00:23]} 36. Qxc3 {[%clk 0:00:01]}  Qh1+ {[%clk 0:00:22]} 37. Ke2 {[%clk 0:00:00]}  Qxh2+ {[%clk 0:00:22]} 0-1


[Site "https://www.chess.com"]

[Event "Titled Tuesday Blitz June 13 Early 2023"]
[White "a-z30"]
[Black "Chemin, Justo Reinaldo"]
[BlackFideId "2101580"]
[WhiteElo "2439"]
[BlackElo "1940"]
[Result "0-1"]
[Round "7"]
[TimeControl "180+2"]
[Date "2023.06.13"]
[WhiteClock "0:00:00"]
[BlackClock "0:00:55"]
[Board "136"]

1. d4 {[%clk 0:02:56]}  d5 {[%clk 0:02:55]} 2. c4 {[%clk 0:02:57]}  e6 {[%clk 0:02:55]} 3. Nc3 {[%clk 0:02:57]}  c5 {[%clk 0:02:55]} 4. cxd5 {[%clk 0:02:54]}  cxd4 {[%clk 0:02:55]} 5. Qa4+ {[%clk 0:02:53]}  b5 {[%clk 0:02:53]} 6. Nxb5 {[%clk 0:02:31]}  Bd7 {[%clk 0:02:49]} 7. Qb3 {[%clk 0:02:25]}  Qa5+ {[%clk 0:02:36]} 8. Bd2 {[%clk 0:02:14]}  Qxb5 {[%clk 0:02:36]} 9. dxe6 {[%clk 0:02:14]}  fxe6 {[%clk 0:02:33]} 10. Qf3 {[%clk 0:01:39]}  Nc6 {[%clk 0:02:19]} 11. Rc1 {[%clk 0:01:23]}  Bb4 {[%clk 0:02:07]} 12. e3 {[%clk 0:00:58]}  Bxd2+ {[%clk 0:02:05]} 13. Kxd2 {[%clk 0:00:58]}  Qxb2+ {[%clk 0:02:04]} 14. Rc2 {[%clk 0:00:58]}  Qb4+ {[%clk 0:02:04]} 15. Kd1 {[%clk 0:00:52]}  Nge7 {[%clk 0:01:54]} 16. Nh3 {[%clk 0:00:33]}  Rf8 {[%clk 0:01:50]} 17. Qh5+ {[%clk 0:00:22]}  g6 {[%clk 0:01:49]} 18. Qxh7 {[%clk 0:00:19]}  dxe3 {[%clk 0:01:48]} 19. fxe3 {[%clk 0:00:17]}  e5 {[%clk 0:01:45]} 20. Bd3 {[%clk 0:00:15]}  Bg4+ {[%clk 0:01:44]} 21. Kc1 {[%clk 0:00:13]}  Rb8 {[%clk 0:01:41]} 22. Bxg6+ {[%clk 0:00:12]}  Kd8 {[%clk 0:01:36]} 23. Rd2+ {[%clk 0:00:07]}  Kc7 {[%clk 0:01:35]} 24. Rc2 {[%clk 0:00:06]}  Qa3+ {[%clk 0:01:24]} 25. Kd2 {[%clk 0:00:04]}  Rbe8 {[%clk 0:01:24]} 26. Rhc1 {[%clk 0:00:02]}  Rd8+ {[%clk 0:01:24]} 27. Bd3 {[%clk 0:00:01]}  e4 {[%clk 0:00:56]} 28. Rxc6+ {[%clk 0:00:00]}  Kb8 {[%clk 0:00:55]} 0-1


[Site "https://www.chess.com"]

[Event "Titled Tuesday Blitz June 13 Early 2023"]
[White "Gulkov, Igor A."]
[Black "Iskusnyh, Sergei"]
[WhiteFideId "4120973"]
[BlackFideId "4120027"]
[WhiteElo "2343"]
[BlackElo "2492"]
[Result "0-1"]
[Round "7"]
[TimeControl "180+2"]
[Date "2023.06.13"]
[WhiteClock "0:00:00"]
[BlackClock "0:00:14"]
[Board "140"]

1. Nf3 {[%clk 0:03:00]}  d5 {[%clk 0:02:58]} 2. d4 {[%clk 0:03:00]}  Nf6 {[%clk 0:02:57]} 3. c4 {[%clk 0:03:00]}  c6 {[%clk 0:02:57]} 4. Nc3 {[%clk 0:03:00]}  e6 {[%clk 0:02:55]} 5. Bg5 {[%clk 0:02:59]}  Nbd7 {[%clk 0:02:51]} 6. e3 {[%clk 0:02:58]}  Be7 {[%clk 0:02:47]} 7. Qc2 {[%clk 0:02:58]}  h6 {[%clk 0:02:42]} 8. Bh4 {[%clk 0:02:57]}  O-O {[%clk 0:02:36]} 9. Rc1 {[%clk 0:02:56]}  a6 {[%clk 0:02:18]} 10. cxd5 {[%clk 0:02:55]}  exd5 {[%clk 0:02:12]} 11. Bd3 {[%clk 0:02:54]}  Ne8 {[%clk 0:02:10]} 12. Bxe7 {[%clk 0:02:48]}  Qxe7 {[%clk 0:02:09]} 13. O-O {[%clk 0:02:48]}  Nd6 {[%clk 0:02:09]} 14. Rce1 {[%clk 0:02:38]}  f5 {[%clk 0:02:00]} 15. Nd2 {[%clk 0:02:25]}  Nf6 {[%clk 0:01:54]} 16. f4 {[%clk 0:02:24]}  Nfe4 {[%clk 0:01:39]} 17. Nf3 {[%clk 0:02:23]}  Be6 {[%clk 0:01:26]} 18. Ne5 {[%clk 0:02:22]}  Qf6 {[%clk 0:01:23]} 19. Bxe4 {[%clk 0:02:16]}  fxe4 {[%clk 0:01:18]} 20. g4 {[%clk 0:02:12]}  Nf7 {[%clk 0:00:58]} 21. Nxf7 {[%clk 0:01:59]}  Rxf7 {[%clk 0:00:55]} 22. Qg2 {[%clk 0:01:59]}  Qh4 {[%clk 0:00:46]} 23. f5 {[%clk 0:01:48]}  Bd7 {[%clk 0:00:45]} 24. Ne2 {[%clk 0:01:39]}  h5 {[%clk 0:00:33]} 25. h3 {[%clk 0:01:28]}  hxg4 {[%clk 0:00:32]} 26. hxg4 {[%clk 0:01:28]}  Qg5 {[%clk 0:00:18]} 27. Nf4 {[%clk 0:01:26]}  Rf6 {[%clk 0:00:18]} 28. Qg3 {[%clk 0:00:51]}  Rh6 {[%clk 0:00:17]} 29. Kg2 {[%clk 0:00:48]}  Rh4 {[%clk 0:00:17]} 30. Nh3 {[%clk 0:00:35]}  Qxg4 {[%clk 0:00:17]} 31. Qxg4 {[%clk 0:00:32]}  Rxg4+ {[%clk 0:00:17]} 32. Kh2 {[%clk 0:00:33]}  Kf7 {[%clk 0:00:18]} 33. Rg1 {[%clk 0:00:27]}  Rxg1 {[%clk 0:00:17]} 34. Rxg1 {[%clk 0:00:26]}  Rh8 {[%clk 0:00:18]} 35. Rg5 {[%clk 0:00:24]}  g6 {[%clk 0:00:15]} 36. fxg6+ {[%clk 0:00:22]}  Kg7 {[%clk 0:00:15]} 37. Rg3 {[%clk 0:00:21]}  Bxh3 {[%clk 0:00:15]} 38. Rxh3 {[%clk 0:00:21]}  Rxh3+ {[%clk 0:00:15]} 39. Kxh3 {[%clk 0:00:22]}  Kxg6 {[%clk 0:00:15]} 40. Kg4 {[%clk 0:00:22]}  b6 {[%clk 0:00:16]} 41. b4 {[%clk 0:00:22]}  a5 {[%clk 0:00:15]} 42. a3 {[%clk 0:00:17]}  Kf6 {[%clk 0:00:14]} 43. Kf4 {[%clk 0:00:16]}  Ke6 {[%clk 0:00:13]} 44. Kg5 {[%clk 0:00:15]}  axb4 {[%clk 0:00:14]} 45. axb4 {[%clk 0:00:14]}  c5 {[%clk 0:00:14]} 46. dxc5 {[%clk 0:00:09]}  bxc5 {[%clk 0:00:14]} 47. bxc5 {[%clk 0:00:00]}  d4 {[%clk 0:00:14]} 0-1


[Site "https://www.chess.com"]

[Event "Titled Tuesday Blitz June 13 Early 2023"]
[White "Dixit, Nikhil"]
[Black "Nikologorsky, Matfei"]
[WhiteFideId "5059534"]
[BlackFideId "24102474"]
[WhiteElo "2207"]
[BlackElo "2153"]
[Result "0-1"]
[Round "7"]
[TimeControl "180+2"]
[Date "2023.06.13"]
[WhiteClock "0:00:37"]
[BlackClock "0:01:12"]
[Board "141"]

1. e4 {[%clk 0:03:00]}  c5 {[%clk 0:02:57]} 2. Nf3 {[%clk 0:02:58]}  e6 {[%clk 0:02:57]} 3. b3 {[%clk 0:02:58]}  d5 {[%clk 0:02:57]} 4. Bb5+ {[%clk 0:02:56]}  Bd7 {[%clk 0:02:56]} 5. Bxd7+ {[%clk 0:02:56]}  Qxd7 {[%clk 0:02:54]} 6. exd5 {[%clk 0:02:54]}  Qxd5 {[%clk 0:02:54]} 7. O-O {[%clk 0:02:54]}  Nf6 {[%clk 0:02:54]} 8. Nc3 {[%clk 0:02:53]}  Qd7 {[%clk 0:02:51]} 9. Qe2 {[%clk 0:02:44]}  Nc6 {[%clk 0:02:50]} 10. Ne5 {[%clk 0:02:43]}  Nxe5 {[%clk 0:02:50]} 11. Qxe5 {[%clk 0:02:43]}  Bd6 {[%clk 0:02:51]} 12. Qg5 {[%clk 0:02:42]}  O-O {[%clk 0:02:50]} 13. Bb2 {[%clk 0:02:43]}  h6 {[%clk 0:02:48]} 14. Qh4 {[%clk 0:02:42]}  Be7 {[%clk 0:02:39]} 15. Qf4 {[%clk 0:02:22]}  Rfd8 {[%clk 0:02:33]} 16. d3 {[%clk 0:02:01]}  Bd6 {[%clk 0:02:27]} 17. Qf3 {[%clk 0:01:58]}  b6 {[%clk 0:02:15]} 18. Ne4 {[%clk 0:01:50]}  Nxe4 {[%clk 0:02:15]} 19. Qxe4 {[%clk 0:01:50]}  Qc7 {[%clk 0:02:13]} 20. g3 {[%clk 0:01:27]}  Rd7 {[%clk 0:02:12]} 21. a4 {[%clk 0:01:25]}  Rad8 {[%clk 0:02:11]} 22. Rfe1 {[%clk 0:01:24]}  Bf8 {[%clk 0:02:04]} 23. a5 {[%clk 0:01:23]}  b5 {[%clk 0:02:00]} 24. Be5 {[%clk 0:01:20]}  Qc8 {[%clk 0:01:57]} 25. g4 {[%clk 0:01:15]}  Rd5 {[%clk 0:01:53]} 26. f4 {[%clk 0:01:14]}  c4 {[%clk 0:01:44]} 27. bxc4 {[%clk 0:01:12]}  bxc4 {[%clk 0:01:44]} 28. d4 {[%clk 0:01:12]}  Qa6 {[%clk 0:01:35]} 29. g5 {[%clk 0:01:08]}  hxg5 {[%clk 0:01:29]} 30. fxg5 {[%clk 0:01:09]}  Rxa5 {[%clk 0:01:28]} 31. Rxa5 {[%clk 0:01:08]}  Qxa5 {[%clk 0:01:29]} 32. Rf1 {[%clk 0:01:08]}  Qd2 {[%clk 0:01:23]} 33. Qh4 {[%clk 0:01:01]}  Be7 {[%clk 0:01:19]} 34. Bxg7 {[%clk 0:00:38]}  Kxg7 {[%clk 0:01:15]} 35. Qh6+ {[%clk 0:00:38]}  Kg8 {[%clk 0:01:12]} 36. Rxf7 {[%clk 0:00:37]} 0-1


[Site "https://www.chess.com"]

[Event "Titled Tuesday Blitz June 13 Early 2023"]
[White "Srdanovic, Jovana"]
[Black "Koridze, Lile"]
[WhiteFideId "954810"]
[BlackFideId "13612514"]
[WhiteElo "2155"]
[BlackElo "2047"]
[Result "1-0"]
[Round "7"]
[TimeControl "180+2"]
[Date "2023.06.13"]
[WhiteClock "0:00:10"]
[BlackClock "0:00:49"]
[Board "142"]

1. e4 {[%clk 0:02:54]}  c5 {[%clk 0:03:00]} 2. Nf3 {[%clk 0:02:53]}  d6 {[%clk 0:02:59]} 3. d4 {[%clk 0:02:53]}  cxd4 {[%clk 0:02:59]} 4. Nxd4 {[%clk 0:02:54]}  Nf6 {[%clk 0:02:59]} 5. Nc3 {[%clk 0:02:53]}  a6 {[%clk 0:03:00]} 6. Be2 {[%clk 0:02:48]}  e5 {[%clk 0:02:59]} 7. Nb3 {[%clk 0:02:48]}  Be7 {[%clk 0:02:59]} 8. Be3 {[%clk 0:02:46]}  Be6 {[%clk 0:02:57]} 9. Qd3 {[%clk 0:02:17]}  b5 {[%clk 0:02:56]} 10. a4 {[%clk 0:02:08]}  b4 {[%clk 0:02:14]} 11. Nd5 {[%clk 0:02:08]}  Nbd7 {[%clk 0:02:10]} 12. Nxb4 {[%clk 0:01:56]}  a5 {[%clk 0:02:03]} 13. Nc6 {[%clk 0:01:53]}  Qc7 {[%clk 0:02:03]} 14. Nxe7 {[%clk 0:01:53]}  Kxe7 {[%clk 0:02:04]} 15. O-O {[%clk 0:01:47]}  Nb6 {[%clk 0:01:55]} 16. f4 {[%clk 0:01:38]}  Bc4 {[%clk 0:01:53]} 17. Qd1 {[%clk 0:01:29]}  Nxe4 {[%clk 0:01:53]} 18. fxe5 {[%clk 0:01:22]}  dxe5 {[%clk 0:01:52]} 19. Bxc4 {[%clk 0:01:05]}  Nxc4 {[%clk 0:01:49]} 20. Qd5 {[%clk 0:00:54]}  Ncd6 {[%clk 0:01:35]} 21. Qxe5+ {[%clk 0:00:49]}  Kf8 {[%clk 0:01:35]} 22. Nc5 {[%clk 0:00:39]}  Re8 {[%clk 0:01:32]} 23. Ne6+ {[%clk 0:00:38]}  Rxe6 {[%clk 0:01:23]} 24. Qxe6 {[%clk 0:00:38]}  Kg8 {[%clk 0:01:20]} 25. Qd5 {[%clk 0:00:35]}  h6 {[%clk 0:01:16]} 26. c3 {[%clk 0:00:24]}  Kh7 {[%clk 0:01:16]} 27. Rad1 {[%clk 0:00:22]}  Re8 {[%clk 0:01:15]} 28. Bf4 {[%clk 0:00:20]}  Qb6+ {[%clk 0:01:14]} 29. Qd4 {[%clk 0:00:17]}  Qxd4+ {[%clk 0:01:07]} 30. Rxd4 {[%clk 0:00:18]}  Nf5 {[%clk 0:01:08]} 31. Rd5 {[%clk 0:00:16]}  g6 {[%clk 0:01:03]} 32. Rxa5 {[%clk 0:00:16]}  Nf6 {[%clk 0:01:01]} 33. Ra7 {[%clk 0:00:16]}  Kg7 {[%clk 0:01:00]} 34. a5 {[%clk 0:00:14]}  Re2 {[%clk 0:00:59]} 35. a6 {[%clk 0:00:12]}  Rxb2 {[%clk 0:00:59]} 36. Rb7 {[%clk 0:00:13]}  Ra2 {[%clk 0:00:59]} 37. a7 {[%clk 0:00:14]}  Nh4 {[%clk 0:00:51]} 38. Be5 {[%clk 0:00:10]}  Nf5 {[%clk 0:00:50]} 39. Bxf6+ {[%clk 0:00:10]}  Kxf6 {[%clk 0:00:49]} 40. g4 {[%clk 0:00:10]} 1-0


[Site "https://www.chess.com"]